Cogmind - Beta 10.1 @@@ ROGUE MODE // 2020.09.23 @ 00:56:19 Player: _Cogmind Result: Self-destructed Performance ------------- Evolutions (2) 1000 Regions Visited (7) 1400 Robots Destroyed (20) 100 Value Destroyed (444) 444 Prototype IDs (5) 100 Alien Tech Used (0) 0 Bonus (0) 0 TOTAL SCORE: 3044 Bonus ------- None Cogmind --------- Core Integrity 353/550 Matter 300/300 Energy 100/100 System Corruption 1% Temperature Cool (0) Movement Core (50) Location -8/Materials Parts ------- > --- POWER (1) -------- (None) > --- PROPULSION (4) --- (None) > --- UTILITY (3) ------ Advanced Signal Interpreter Core Shielding > --- WEAPON (3) ------- (None) > --- INVENTORY (4) ---- Small Storage Unit Advanced Visual Processing Unit Advanced Visual Processing Unit Hacking Suite Peak State ------------ > --- POWER ------------ Light Nuclear Core > --- PROPULSION ------- Aluminum Leg Aluminum Leg > --- UTILITY ---------- Advanced Heat Sink Advanced Signal Interpreter Light Armor Plating > --- WEAPON ----------- Electrolaser Heavy Laser Enhanced Autogun > --- INVENTORY -------- Small Storage Unit Advanced Visual Processing Unit Advanced Visual Processing Unit Hacking Suite [Rating: 26] Favorites ----------- Power Ion Engine Engine Ion Engine Power Core Light Nuclear Core Propulsion Aluminum Leg Leg Aluminum Leg Utility Small Storage Unit Device Experimental Sensor Array Storage Small Storage Unit Processor Advanced Signal Interpreter Protection Light Armor Plating Weapon Light Assault Rifle Energy Gun Beamcaster Ballistic Gun Light Assault Rifle Special Weapon Mining Laser Build | -11 -10 -10 -9 -9 -9 -8 -8 ------- Run | Scr Mat Min Mat Min Exi Min Mat Slots Evolved 4 | . . . 2 . . . 2 Power . | . . . . . . . . Propulsion 2 | . . . 2 . . . . Utility 1 | . . . . . . . 1 Weapon 1 | . . . . . . . 1 Parts Attached 31 | 6 . 3 6 4 . 7 5 Power 5 | 1 . 1 . 1 . 2 . Engine 3 | 1 . 1 . 1 . . . Core 2 | . . . . . . 2 . Reactor . | . . . . . . . . Propulsion 4 | 2 . . . . . 2 . Treads . | . . . . . . . . Leg 4 | 2 . . . . . 2 . Wheel . | . . . . . . . . Hover . | . . . . . . . . Flight . | . . . . . . . . Utility 9 | 1 . 2 2 1 . . 3 Device 3 | . . 1 1 . . . 1 Storage 1 | 1 . . . . . . . Processor 1 | . . . . 1 . . . Hackware . | . . . . . . . . Protection 4 | . . 1 1 . . . 2 Artifact . | . . . . . . . . Weapon 13 | 2 . . 4 2 . 3 2 Energy Gun 4 | 1 . . . 1 . 1 1 Energy Cannon . | . . . . . . . . Ballistic Gun 8 | 1 . . 3 1 . 2 1 Ballistic Cannon . | . . . . . . . . Launcher . | . . . . . . . . Special Weapon 1 | . . . 1 . . . . Impact Weapon . | . . . . . . . . Slashing Weapon . | . . . . . . . . Piercing Weapon . | . . . . . . . . Special Melee Weapon . | . . . . . . . . Unidentified Prototypes 2 | . . 1 . . . . 1 Parts Lost 11 | . . . 1 . . 1 9 Power 1 | . . . . . . . 1 Propulsion 4 | . . . . . . 1 3 Utility 2 | . . . . . . . 2 Weapon 4 | . . . 1 . . . 3 Highest Loss Streak 9 | . . . 1 . . 1 9 Average Slot Usage (%) 81 | . 85 97 76 77 77 85 71 Engine 9 | . 14 14 11 11 11 1 . Core 1 | . . . . . . 9 6 Leg 24 | . 28 28 22 22 22 30 18 Device 4 | . . 7 10 9 . . 4 Storage 11 | . 14 14 11 11 11 11 4 Processor 5 | . . . . 1 11 11 9 Energy Gun 11 | . 14 14 11 11 11 11 9 Ballistic Gun 11 | . 14 14 10 11 11 11 10 Naked Turns . | . . . . . . . . Heaviest Build 20 | 13 13 16 16 16 15 15 20 Greatest Support 30 | 20 20 20 20 20 20 30 30 Greatest Overweight (x) 1 | 1 . . . . . . . Average Overweight (x) . | . . . . . . . . Largest Inventory Capacity 6 | 6 6 6 6 6 6 6 6 Average Capacity 5 | 5 6 6 6 6 6 6 4 Most Carried 6 | 4 4 5 6 6 6 6 6 Average Carried 5 | 2 2 4 5 6 6 5 4 Final Capacity 6 | 6 6 6 6 6 6 6 4 Final Carried 6 | 2 4 5 6 6 6 6 4 Class Distribution -------------------- 82% | Mutant 15% | Scavenger-Mutant Dominant Class ---------------- Mutant | -10/Materials Mutant | -10/Mines Mutant | -9/Materials Mutant | -9/Mines Mutant | -9/Exiles Scavenger-Mutant | -8/Mines Scavenger-Tank | -8/Materials Resources | -11 -10 -10 -9 -9 -9 -8 -8 ----------- Run | Scr Mat Min Mat Min Exi Min Mat Matter Collected 529 | 242 19 34 55 77 . 102 . Remotely . | . . . . . . . . Salvage Created 642 | . 19 . 55 64 . 504 . Parts 36 | . 3 . 4 6 . 23 . Haulers Intercepted . | . . . . . . . . Recyclers Shooed . | . . . . . . . . Parts Field Recycled . | . . . . . . . . Retrieved Matter . | . . . . . . . . Parts Self-Destructed . | . . . . . . . . Prevented . | . . . . . . . . Kills | -11 -10 -10 -9 -9 -9 -8 -8 ------- Run | Scr Mat Min Mat Min Exi Min Mat Combat Hostiles Destroyed 17 | . . . 1 4 . 12 . Guns 17 | . . . 1 4 . 12 . Classes Destroyed 5 | . 1 . 1 1 . 2 . Recycler 2 | . . . . . . 2 . Operator 1 | . 1 . . . . . . Swarmer 11 | . . . . 4 . 7 . Grunt 5 | . . . . . . 5 . Sentry 1 | . . . 1 . . . . Best Kill Streak 4 | . 1 . 1 4 . 4 . Combat Bots Only 4 | . . . 1 4 . 4 . Max Kills in Single Turn 2 | . 1 . 1 2 . 2 . Gunslinging 1 | . . . . 1 . 1 . Exploded . | . . . . . . . . Melee . | . . . . . . . . Uniques/NPCs Destroyed . | . . . . . . . . Combat | -11 -10 -10 -9 -9 -9 -8 -8 -------- Run | Scr Mat Min Mat Min Exi Min Mat Damage Taken 1715 | . . 116 64 134 . 622 779 Core 369 | . . 14 . 37 . 121 197 Absorbed by Shields . | . . . . . . . . Core Remaining (%) 84 | 100 . 94 . . . 60 . Volleys Fired 62 | . 1 4 3 7 . 37 10 Largest 3 | . 2 2 2 2 . 2 3 Hottest 157 | . 60 60 100 60 . 95 157 Shots Fired 126 | . 2 8 5 14 . 74 23 Gun 125 | . 2 8 4 14 . 74 23 Cannon . | . . . . . . . . Launcher . | . . . . . . . . Special 1 | . . . 1 . . . . Kinetic 60 | . 1 4 2 7 . 37 9 Thermal 52 | . . . 1 . . 37 14 Explosive . | . . . . . . . . Electromagnetic 14 | . 1 4 2 7 . . . Robot Hit Streak 8 | . 1 3 4 2 . 8 3 Robot Miss Streak 4 | . . 3 . 2 . 4 3 Penetration Max . | . . . . . . . . Secondary Targets 6 | . . . . 1 . 5 . Max Gunslinging Chain 1 | . . . . 1 . 1 . Shots Hit Robots 73 | . 1 3 4 7 . 45 13 Core Hits 36 | . 1 1 2 4 . 24 4 Critical Hits 1 | . . . . 1 . . . Critical Kills 1 | . . . . 1 . . . Critical Parts Destroyed . | . . . . . . . . Melee Attacks . | . . . . . . . . Impact . | . . . . . . . . Slashing . | . . . . . . . . Piercing . | . . . . . . . . Sneak Attacks . | . . . . . . . . Combat Hostiles . | . . . . . . . . Follow-up Attacks . | . . . . . . . . Damage Inflicted 1171 | . 18 43 51 84 . 722 253 Guns 1160 | . 18 43 51 84 . 722 242 Cannons . | . . . . . . . . Explosions . | . . . . . . . . Melee . | . . . . . . . . Ramming 11 | . . . . . . . 11 Kinetic 347 | . . 21 29 39 . 155 103 Thermal 706 | . . . . . . 567 139 Explosive . | . . . . . . . . Electromagnetic 107 | . 18 22 22 45 . . . Impact . | . . . . . . . . Slashing . | . . . . . . . . Piercing . | . . . . . . . . Highest Corruption 1 | . . . . . . . 1 Average Corruption 1 | . . . . . . . 1 Corruption Purged . | . . . . . . . . Overload Shots . | . . . . . . . . Overflow Damage . | . . . . . . . . Projectiles . | . . . . . . . . Explosions . | . . . . . . . . Melee . | . . . . . . . . Knockbacks . | . . . . . . . . Impact . | . . . . . . . . Kinetic . | . . . . . . . . Secondary . | . . . . . . . . Self-Inflicted Damage 4 | . . . . . . . 4 Shots . | . . . . . . . . Rammed 10 | . . . . . . . 10 Targets Rammed 11 | . . . . . . . 11 Kicked 1 | . . . . . . . 1 Crushed . | . . . . . . . . Highest Temperature 352 | . . 18 9 . . 352 280 Average Temperature 122 | . . 14 7 . . 129 159 Received Heat Transfer 576 | . . 36 18 . . 198 324 Siege Activations . | . . . . . . . . Robots Corrupted . | . . . . . . . . Combat Hostiles . | . . . . . . . . Parts Fried . | . . . . . . . . Impact Corruptions . | . . . . . . . . Robots Melted . | . . . . . . . . Combat Hostiles . | . . . . . . . . Parts Melted 3 | . . . . . . 3 . Heat Transferred 1332 | . . . . . . 1036 296 Parts Sabotaged . | . . . . . . . . Parts Stolen . | . . . . . . . . Parts Stripped . | . . . . . . . . Power Chain Reactions . | . . . . . . . . Missiles Intercepted . | . . . . . . . . Alert | -11 -10 -10 -9 -9 -9 -8 -8 ------- Run | Scr Mat Min Mat Min Exi Min Mat Peak Influence 295 | . 12 19 40 105 . 295 56 Initial 37 | . . 4 . 15 . . 37 Average 72 | . 6 14 11 68 . 181 33 Maximum Alert Level 1 | . . . . . . 1 . Low Security (%) 88 | 100 100 100 100 100 . 56 100 Level 1 11 | . . . . . . 43 . Level 2 . | . . . . . . . . Level 3 . | . . . . . . . . Level 4 . | . . . . . . . . Level 5 . | . . . . . . . . High Security . | . . . . . . . . Max Security . | . . . . . . . . Squads Dispatched 1 | . 1 . . . . . . Investigation . | . . . . . . . . Extermination . | . . . . . . . . Reinforcement 1 | . 1 . . . . . . Assault . | . . . . . . . . Garrison . | . . . . . . . . Intercept . | . . . . . . . . Construction Impeded . | . . . . . . . . Haulers Reinforced . | . . . . . . . . Stealth | -11 -10 -10 -9 -9 -9 -8 -8 --------- Run | Scr Mat Min Mat Min Exi Min Mat Distress Signals . | . . . . . . . . Communications Jammed . | . . . . . . . . Distress Signals . | . . . . . . . . Times Spotted 25 | . 1 1 1 4 . 15 3 Peak Tracking Total 4 | . 1 1 1 4 . 3 3 Tactical Retreats 3 | . . . . . . 3 . Traps | -11 -10 -10 -9 -9 -9 -8 -8 ------- Run | Scr Mat Min Mat Min Exi Min Mat Traps Triggered . | . . . . . . . . Indirectly . | . . . . . . . . Trap Hack Attempts . | . . . . . . . . Triggered . | . . . . . . . . Disarmed . | . . . . . . . . Reprogrammed . | . . . . . . . . Reused . | . . . . . . . . Traps Extracted . | . . . . . . . . Installed . | . . . . . . . . Triggered . | . . . . . . . . Machines | -11 -10 -10 -9 -9 -9 -8 -8 ---------- Run | Scr Mat Min Mat Min Exi Min Mat Machines Disabled 3 | . . 1 . . . 1 1 Max in Single Turn 1 | . . 1 . . . 1 1 Machines Sabotaged . | . . . . . . . . Garrisons Compromised . | . . . . . . . . Overloaded Fab Kills . | . . . . . . . . Fab Network Shutdowns . | . . . . . . . . Hacking | -11 -10 -10 -9 -9 -9 -8 -8 --------- Run | Scr Mat Min Mat Min Exi Min Mat Machines Accessed 9 | . 1 . 3 . 4 . 1 Terminals 5 | . 1 . 3 . . . 1 Fabricators . | . . . . . . . . Repair Stations . | . . . . . . . . Recycling Units . | . . . . . . . . Scanalyzers . | . . . . . . . . Garrison Access . | . . . . . . . . Total Hacks 61 | . 4 . 6 . 49 . 2 Successful 54 | . 2 . 2 . 49 . 1 Failed 7 | . 2 . 4 . . . 1 Catastrophic 1 | . . . 1 . . . . Database Lockouts . | . . . . . . . . Manual . | . . . . . . . . Terminals 12 | . 4 . 6 . . . 2 Fabricators . | . . . . . . . . Repair Stations . | . . . . . . . . Recycling Units . | . . . . . . . . Scanalyzers . | . . . . . . . . Garrison Access . | . . . . . . . . Terminal Hacks 54 | . 2 . 2 . 49 . 1 Record 49 | . . . . . 49 . . Robot Analysis 1 | . 1 . . . . . . Prototype ID Bank 1 | . . . . . . . 1 Terminal Index 1 | . . . 1 . . . . Alert Level 1 | . . . 1 . . . . Surveillance Status 1 | . 1 . . . . . . Fabricator Hacks . | . . . . . . . . Repair Station Hacks . | . . . . . . . . Recycling Unit Hacks . | . . . . . . . . Scanalyzer . | . . . . . . . . Garrison Access Hacks . | . . . . . . . . Unauthorized Hacks . | . . . . . . . . Terminals . | . . . . . . . . Fabricators . | . . . . . . . . Repair Stations . | . . . . . . . . Recycling Units . | . . . . . . . . Scanalyzers . | . . . . . . . . Garrison Access . | . . . . . . . . Data Cores Recovered . | . . . . . . . . Used . | . . . . . . . . Hacking Detections 5 | . 1 . 3 . . . 1 Full Trace Events . | . . . . . . . . Feedback Events . | . . . . . . . . Feedback Blocked . | . . . . . . . . Robot Schematics Acquired . | . . . . . . . . Robots Built . | . . . . . . . . Matter . | . . . . . . . . Time . | . . . . . . . . Total Robot Build Rating . | . . . . . . . . Part Schematics Acquired . | . . . . . . . . Parts Built . | . . . . . . . . Matter . | . . . . . . . . Time . | . . . . . . . . Total Part Build Rating . | . . . . . . . . Parts Repaired . | . . . . . . . . Time . | . . . . . . . . Parts Recycled . | . . . . . . . . Recycled Matter . | . . . . . . . . Retrieved Matter . | . . . . . . . . Retrieved Components . | . . . . . . . . Parts Scanalyzed . | . . . . . . . . Part Schematics Acquired . | . . . . . . . . Parts Damaged . | . . . . . . . . Bothacking | -11 -10 -10 -9 -9 -9 -8 -8 ------------ Run | Scr Mat Min Mat Min Exi Min Mat Used RIF Installer . | . . . . . . . . Robots Hacked . | . . . . . . . . Non-combat . | . . . . . . . . Combat . | . . . . . . . . Robot Hacks Applied . | . . . . . . . . Relay Couplers Released . | . . . . . . . . Robots Rewired . | . . . . . . . . Allies Hacked . | . . . . . . . . Hacks Repelled . | . . . . . . . . Allies | -11 -10 -10 -9 -9 -9 -8 -8 -------- Run | Scr Mat Min Mat Min Exi Min Mat Total Allies . | . . . . . . . . Largest Group . | . . . . . . . . Highest-Rated Group . | . . . . . . . . Highest-Rated Ally . | . . . . . . . . Total Orders . | . . . . . . . . Ally Attacks . | . . . . . . . . Total Damage . | . . . . . . . . Kills . | . . . . . . . . Allies Corrupted . | . . . . . . . . Allies Melted . | . . . . . . . . Intel | -11 -10 -10 -9 -9 -9 -8 -8 ------- Run | Scr Mat Min Mat Min Exi Min Mat Robot Analysis Total 1 | . 1 . . . . . . Derelict Logs Recovered . | . . . . . . . . Drone Launches . | . . . . . . . . Drone Recoveries . | . . . . . . . . Exploration | -11 -10 -10 -9 -9 -9 -8 -8 ------------- Run | Scr Mat Min Mat Min Exi Min Mat Turns Passed 2875 | 53 80 458 240 598 819 528 99 Spaces Moved 2057 | 37 63 296 143 459 683 333 43 Core 14 | 9 . . . . . . 5 Treads . | . . . . . . . . Legs 2043 | 28 63 296 143 459 683 333 38 Wheels . | . . . . . . . . Hover . | . . . . . . . . Flight . | . . . . . . . . Fastest Speed 50 | 50 120 120 120 120 120 120 50 Average Speed 119 | 105 120 120 120 120 120 120 111 Slowest Speed 120 | 120 120 120 120 120 120 120 120 Overloaded Moves . | . . . . . . . . Propulsion Burnouts . | . . . . . . . . Robots Hopped . | . . . . . . . . Cave-ins Triggered . | . . . . . . . . Exploration Rate (%) 37 | 4 17 50 15 75 92 44 6 Regions Visited 7 Branch Regions 4 Pre-discovered Areas 1 | . . . . . 1 . . Known Exits Taken 3 | . . . . 1 1 1 . Unknown Exits Taken 4 | 1 1 1 1 . . . . Scrap Searched 2 | . . 1 . 1 . . . Spaces Dug 1 | . . . 1 . . . . Terrain Destroyed 1 | . . . 1 . . . . Melee . | . . . . . . . . Projectile 1 | . . . 1 . . . . AOE . | . . . . . . . . Terrain Rammed . | . . . . . . . . Walls Destroyed . | . . . . . . . . Machines Disabled . | . . . . . . . . Actions | -11 -10 -10 -9 -9 -9 -8 -8 --------- Run | Scr Mat Min Mat Min Exi Min Mat Total 2352 | 49 65 391 203 492 682 396 74 Wait 169 | 2 . 86 46 20 . 12 3 Move 2050 | 36 62 295 142 458 682 332 43 Hop . | . . . . . . . . Pick Up 17 | 5 2 2 4 . . 2 2 Fast Attach 8 | 3 . . . 1 . 3 1 Attach 8 | 3 . 2 1 . . . 2 Detach 1 | . . 1 . . . . . Swap 15 | . . 1 5 3 . 4 2 Drop 11 | . . . 2 3 . 6 . Fire 62 | . 1 4 3 7 . 37 10 Melee . | . . . . . . . . Ram 4 | . . . . . . . 4 Kick 7 | . . . . . . . 7 Crush . | . . . . . . . . Escape Stasis . | . . . . . . . . Rewire . | . . . . . . . . Trap . | . . . . . . . . Miscellaneous . | . . . . . . . . Route ------- -11/Scrapyard -10/Materials -10/Mines -9/Materials -9/Mines (discovered 2 exits: *Mat / *Exi) -9/Exiles (discovered 2 exits: *Min x2) -8/Mines -8/Materials History --------- Turn | Location | Event 2 | -11/Scrapyard | Met Revision 17 14 | -11/Scrapyard | Discovered new exit (range 15) 54 | -11/Scrapyard | Entered Materials 93 | -10/Materials | Discovered new exit (range 8) 134 | -10/Materials | Entered Mines 187 | -10/Mines | Joined a pair of Derelicts in attacking an 0b10 outpost 300 | -10/Mines | Build established: Mutant 333 | -10/Mines | Found a damaged Exp. Sensor Array with a note attached 336 | -10/Mines | Found Prototype Device 337 | -10/Mines | Identified Exp. Sensor Array 574 | -10/Mines | Discovered new exit (range 14) 592 | -10/Mines | Entered Materials 592 | -9/Materials | Evolved 2 slots: Propulsion x2 756 | -9/Materials | Discovered new exit (range 12) 832 | -9/Materials | Entered Mines 837 | -9/Mines | Met a Derelict bent on vengeance 904 | -9/Mines | YI-UF0 nonchalantly dropped a Grenade Launcher on the ground 944 | -9/Mines | Assembled infested the area 1259 | -9/Mines | Discovered new exit (range 8) 1334 | -9/Mines | Discovered new exit (range 5) 1344 | -9/Mines | Identified exit to Exiles 1386 | -9/Mines | Identified exit to Materials 1430 | -9/Mines | Entered Exiles 1460 | -9/Exiles | Met 8R-AWN 1480 | -9/Exiles | Met EX-HEX 1548 | -9/Exiles | Met EX-DEC 1602 | -9/Exiles | Visited The Gauntlet 1763 | -9/Exiles | Learned location of Zion (-7) 1798 | -9/Exiles | Discovered new exit (range 14) 1811 | -9/Exiles | Identified exit to Mines 1902 | -9/Exiles | Met EX-BIN 2105 | -9/Exiles | Discovered exit to Mines (range 14) 2249 | -9/Exiles | Entered Mines 2364 | -8/Mines | Discovered exit to Materials (range 5) 2619 | -8/Mines | Build established: Scavenger-Mutant 2777 | -8/Mines | Entered Materials 2777 | -8/Materials | Evolved 2 slots: Utility x1, Weapon x1 2876 | -8/Materials | Self-destructed Last Messages --------------- 02833_ R-06 Scavenger collects Lgt. Assault Rifle. 02840_ Lgt. Nuclear Core destroyed. 02840_ Hvy. Laser destroyed. 02844_ Aluminum Leg destroyed. 02845_ Lgt. Armor Plating destroyed. 02850_ Destroyed Imp. Aluminum Leg. 02850_ L-31 Rogue destroyed. 02854_ Enh. Autogun destroyed. 02856_ Acquired Core Shielding. 02858_ Electrolaser destroyed. 02860_ Kicked G-47 Trooper out of the way. 02861_ Slammed into G-47 Trooper. 02861_ Destabilizing: System interference. 02861_ Adv. Heat Sink temporarily disabled. 02862_ Slammed into G-47 Trooper. 02868_ Aluminum Leg destroyed. 02868_ System corrupted by crushing effect (+1). 02869_ Slammed into G-47 Trooper. 02870_ Adv. Heat Sink destroyed. 02870_ Slammed into G-47 Trooper. Map ----- +----------------------------------------------------+ | | | | | | | | | | | | | | | | | | | | | ???????????????????#############?????????????????? | | ????????????######## #?????????????????? | | ????????????# # """ """ #?????????????????? | | ????????????# """ =# """ """ ??????????????????? | | ????????????# """ # " " """ ??????????????????? | | ????????????# """ #! "" """ #?????????????????? | | ????????????# # % "" """ #?????????????????? | | ????????????# # = g #?????????????????? | | ????????????####+######/########?????????????????? | | ????????????# #?????????????????????? | | ????????????# % #?????????????????????? | | ????????????# #?????????????????????? | | ???????????#####+####### #?????????????????????? | | ???????????# #?# #?????????????????????? | | ???????????# #?# #?????????????????????? | | ???????????# #?# @ + ????????????????????? | | ???????????# """T""" #?# # ???????????????????? | | ???????????###########?# # ??????????????????? | | ???????????????????????# #?###?????????????????? | | ??????????????????????? ?????????????????????? | | ??????????????????????? ?????????????????????? | | ??????????????????????+ ????????????????????? | | ??????????????????????# ????????????????????? | | ??????????????????????# ##???????????????????? | | ??????????????????????#### ##????????????????????? | | ?????????????????????????? #?????????????????????? | | ?????????????????????????? #?????????????????????? | | ?????????????????????????? #?????????????????????? | | ?????????????????????????? ??????????????????????? | | ?????????????????????????? ??????????????????????? | | ?????????????????????????? ??????????????????????? | | ?????????????????????????????????????????????????? | | ?????????????????????????????????????????????????? | | ?????????????????????????????????????????????????? | | ?????????????????????????????????????????????????? | | ?????????????????????????????????????????????????? | | ?????????????????????????????????????????????????? | | ?????????????????????????????????????????????????? | | ?????????????????????????????????????????????????? | | ?????????????????????????????????????????????????? | +----------------------------------------------------+ Best States ------------- Heat Dissipation 50 Energy Generation 14 Energy Capacity 250 Matter Stores 300 Matter Capacity 300 Sight Range 16 Robot Scan Range 30 Terrain Scan Density 10 Armor Coverage 150 Core Shielding 20 Evasion (%) 40 Item Schematics ----------------- None Robot Schematics ------------------ None Fabricated ------------ Nothing Alien Tech Used ----------------- None Achievements -------------- None Challenges ------------ None Game ------ Seed EnergyBackupNanosword Manual? 0 Play Time 00:26:08 Cumulative 34.5 hours Start 2020.09.23 @ 00:31:14 End 2020.09.23 @ 00:56:19 Sessions 1 Manual Loads 0 Difficulty Rogue Special Mode None Game No. 46 Rogue 46 Adventurer 0 Explorer 0 Win Type - Total 0 Types 0/0/0/0/0/0/0/0/0 Lore% 24 Gallery% 32 Achievement% 19 Wizard Run 0 Options --------- ASCII 0 Keyboard 0 Movement Mouse Keybinds 0 Fullscreen 1 Font 12/Smallcaps Map View 83x54 Tactical HUD 1 Map Filters NONE Filters NONE Steam 1 RUN: 25677da4-9632-4255-a571-a2303553896a